bitfinex/quotes_BTCUSD_20241009
["timestamp","ask_amount","ask_price","bid_price","bid_amount"]
[1728462426249,0.08259761,62194.0,62193.0,0.33714969]
[1728462426512,0.01069191,62194.0,62193.0,0.33714969]
[1728462426965,0.05862557,62194.0,62193.0,0.33714969]
[1728462429253,0.01069191,62194.0,62193.0,0.33714969]
[1728462429747,0.04792588,62197.0,62196.0,0.238082]
[1728462429973,0.04792588,62197.0,62196.0,0.336882]
[1728462430957,0.04992588,62197.0,62196.0,0.336882]
[1728462431657,0.05292588,62197.0,62196.0,0.336882]
[1728462432381,0.04792588,62198.0,62197.0,0.160779]
[1728462432620,0.04792588,62198.0,62197.0,0.339479]
[1728462434471,0.04792588,62198.0,62197.0,0.1787]
[1728462434708,0.04792588,62198.0,62197.0,0.1827]
[1728462435431,0.04792588,62198.0,62197.0,0.1867]
[1728462436114,0.20869988,62199.0,62197.0,0.1867]
[1728462436971,0.20869988,62199.0,62197.0,0.1827]
[1728462437892,0.20869988,62199.0,62197.0,0.1817]
[1728462438121,0.20869988,62199.0,62197.0,0.1847]
[1728462438363,0.20869988,62199.0,62197.0,0.1817]
[1728462438588,0.20869988,62199.0,62197.0,0.1857]
[1728462438816,0.01065444,62198.0,62197.0,0.1857]
[1728462439034,0.01065444,62198.0,62197.0,0.1787]
[1728462439240,0.01065444,62198.0,62197.0,0.1817]
[1728462439752,0.17143044,62198.0,62197.0,0.1817]
[1728462439984,0.2193482,62198.0,62197.0,0.1817]
[1728462440212,0.31054916,62198.0,62197.0,0.1857]
[1728462440451,0.2193482,62198.0,62197.0,0.0877]
[1728462440680,0.45219551,62198.0,62193.0,0.00086069]
[1728462440904,0.160787,62194.0,62193.0,0.00086069]
[1728462441578,0.17144177,62194.0,62193.0,0.00086069]
[1728462442056,0.24331346,62194.0,62193.0,0.00086069]
[1728462442349,0.17144177,62194.0,62193.0,0.00086069]
[1728462442577,0.24331346,62194.0,62193.0,0.00486069]
[1728462443271,0.17144177,62194.0,62193.0,0.00486069]
[1728462443491,0.24331346,62194.0,62193.0,0.00486069]
[1728462443716,0.24333888,62194.0,62193.0,0.00486069]
[1728462444162,0.24333888,62194.0,62193.0,0.00886069]
[1728462444395,0.34280713,62194.0,62193.0,0.00886069]
[1728462444630,0.34280713,62194.0,62193.0,0.00486069]
[1728462444874,0.34280713,62194.0,62193.0,0.00286069]
[1728462445102,0.34280713,62194.0,62193.0,0.00486069]
[1728462445323,0.27091002,62194.0,62193.0,0.00286069]
[1728462445551,0.24333888,62194.0,62193.0,0.00286069]
[1728462445772,0.24333888,62194.0,62193.0,0.00486069]
[1728462446457,0.08255188,62194.0,62193.0,0.00486069]
[1728462446681,0.24333888,62194.0,62193.0,0.00486069]
[1728462446904,0.08255188,62194.0,62193.0,0.00486069]
[1728462447372,0.24333888,62194.0,62193.0,0.00486069]
[1728462450319,0.29634999,62194.0,62193.0,0.00486069]
[1728462452639,0.3203309,62194.0,62193.0,0.00486069]
[1728462452866,0.22445288,62194.0,62193.0,0.00486069]
[1728462453343,0.3203309,62194.0,62193.0,0.00486069]
[1728462453596,0.32033006,62194.0,62193.0,0.00486069]
[1728462453841,0.26731895,62194.0,62193.0,0.00486069]
[1728462456175,0.26732304,62194.0,62193.0,0.00486069]
[1728462457571,0.38870491,62194.0,62193.0,0.00486069]
[1728462457765,0.38870955,62194.0,62193.0,0.00486069]
[1728462458277,0.50387644,62194.0,62193.0,0.00486069]
[1728462458509,0.38870794,62194.0,62193.0,0.00486069]
[1728462460333,0.29282364,62194.0,62193.0,0.00486069]
[1728462461850,0.4166987,62194.0,62193.0,0.00486069]
[1728462462070,0.29282364,62194.0,62193.0,0.00486069]
[1728462462317,0.56582499,62194.0,62193.0,0.00486069]
[1728462463673,0.66279746,62194.0,62193.0,0.00486069]
[1728462464751,0.80662391,62194.0,62193.0,0.00486069]
[1728462464982,0.90662391,62194.0,62193.0,0.00486069]
[1728462465199,0.76479746,62194.0,62193.0,0.00486069]
[1728462465646,0.76979746,62194.0,62193.0,0.00486069]
[1728462466575,0.76779746,62194.0,62193.0,0.00486069]
[1728462467293,0.79079746,62194.0,62193.0,0.00486069]
[1728462468702,0.79279746,62194.0,62193.0,0.00486069]
[1728462469644,1.04045275,62194.0,62193.0,0.00486069]
[1728462470805,1.03845275,62194.0,62193.0,0.00486069]
[1728462471038,0.79079746,62194.0,62193.0,0.00486069]
[1728462475939,0.79279746,62194.0,62193.0,0.00486069]
[1728462476184,0.79079746,62194.0,62193.0,0.00486069]
[1728462477938,0.79279746,62194.0,62193.0,0.00486069]
[1728462480633,0.79079746,62194.0,62193.0,0.00486069]
[1728462480959,1.03837277,62194.0,62193.0,0.00486069]
[1728462481852,0.92078486,62194.0,62193.0,0.00486069]
[1728462482069,0.67320955,62194.0,62193.0,0.00486069]
[1728462485615,0.67520955,62194.0,62193.0,0.00486069]
[1728462485833,0.67320955,62194.0,62193.0,0.00486069]
[1728462486516,0.67520955,62194.0,62193.0,0.00486069]
[1728462486762,0.72205034,62194.0,62193.0,0.00486069]
[1728462486976,0.87746378,62194.0,62193.0,0.00486069]
[1728462487695,0.91202299,62194.0,62193.0,0.00486069]
[1728462488352,1.12303899,62194.0,62193.0,0.00486069]
[1728462488623,0.002,62186.0,62185.0,0.00082]
[1728462488840,0.66212303,62186.0,62185.0,0.00082]
[1728462489053,0.66529522,62186.0,62185.0,0.00082]
[1728462489491,0.99397053,62186.0,62185.0,0.00082]
[1728462489941,0.99497053,62186.0,62185.0,0.00682]
[1728462490167,1.15238397,62186.0,62185.0,0.00682]
[1728462490625,1.15233937,62186.0,62185.0,0.00682]
[1728462490849,1.15233937,62186.0,62185.0,0.01182]
[1728462491758,1.15133937,62186.0,62185.0,0.00582]
[1728462492208,1.15133937,62186.0,62185.0,0.00982]
[1728462492677,0.288815,62183.0,62182.0,0.001]
[1728462492894,3.60468282,62183.0,62182.0,0.001]
[1728462493125,4.06390877,62183.0,62182.0,0.001]
[1728462493352,3.90225607,62183.0,62182.0,0.001]
[1728462494048,3.90325607,62183.0,62182.0,0.001]
[1728462494282,3.88237864,62183.0,62182.0,0.001]
[1728462494555,3.87282551,62183.0,62182.0,0.001]
[1728462494759,3.91062641,62183.0,62182.0,0.001]
[1728462495656,3.74909451,62183.0,62182.0,0.001]
[1728462496210,3.91062641,62183.0,62182.0,0.001]
[1728462496364,0.265826,62179.0,62178.0,0.000821]
[1728462496574,0.56964302,62179.0,62178.0,0.000821]
[1728462496788,0.57473582,62179.0,62178.0,0.000821]
[1728462497481,1.76910582,62179.0,62178.0,0.000821]
[1728462497694,1.84679353,62179.0,62178.0,0.000821]
[1728462497909,1.81915597,62179.0,62178.0,0.000821]
[1728462498538,1.82115597,62179.0,62178.0,0.000821]
[1728462498969,1.86588545,62179.0,62178.0,0.000821]
[1728462499200,1.46824797,62179.0,62178.0,0.000821]
[1728462499427,1.44775097,62179.0,62178.0,0.000821]
[1728462499684,1.44575097,62179.0,62178.0,0.000821]
[1728462500101,1.44775097,62179.0,62178.0,0.000821]
[1728462500329,1.44733534,62179.0,62178.0,0.000821]
[1728462501255,1.44533534,62179.0,62178.0,0.000821]
[1728462501530,0.99729247,62179.0,62178.0,0.000821]
[1728462501767,1.11867434,62179.0,62178.0,0.000821]
[1728462502005,1.12279009,62179.0,62178.0,0.000821]
[1728462502466,1.11867434,62179.0,62178.0,0.000821]
[1728462503424,0.73014926,62179.0,62178.0,0.000821]
[1728462504146,1.16654926,62179.0,62178.0,0.000821]
[1728462504392,1.11503326,62179.0,62178.0,0.000821]
[1728462504630,0.86779526,62179.0,62178.0,0.000821]
[1728462504863,0.73014926,62179.0,62178.0,0.000821]
[1728462506446,0.72514926,62179.0,62178.0,0.000821]
[1728462506723,0.54673582,62179.0,62178.0,0.077021]
[1728462506956,0.44491068,62179.0,62178.0,0.170521]
[1728462507187,0.32535395,62179.0,62178.0,0.170521]
[1728462510622,0.32535395,62179.0,62178.0,0.171521]
[1728462510623,0.16994051,62179.0,62178.0,0.171521]
[1728462511539,0.21778858,62179.0,62178.0,0.171521]
[1728462512034,0.16994051,62179.0,62178.0,0.170521]
[1728462512279,0.00911451,62179.0,62178.0,0.171521]
[1728462512527,0.00911451,62179.0,62178.0,0.332349]
[1728462512753,0.160821,62181.0,62179.0,0.17]
[1728462513210,0.160821,62181.0,62178.0,0.000821]
[1728462513211,0.160821,62181.0,62180.0,0.17]
[1728462513671,0.21777692,62181.0,62180.0,0.17]
[1728462513918,0.16992885,62181.0,62180.0,0.17]
[1728462514143,0.32936281,62181.0,62180.0,0.0784]
[1728462514366,0.32534229,62181.0,62180.0,0.0784]
[1728462514601,0.32534229,62181.0,62180.0,0.0794]
[1728462514602,0.39711439,62181.0,62180.0,0.0794]
[1728462514835,0.53482175,62181.0,62180.0,0.0784]
[1728462515062,0.53482175,62181.0,62180.0,0.0794]
[1728462515298,0.53582175,62181.0,62180.0,0.0794]
[1728462515642,0.53482175,62181.0,62180.0,0.0794]
[1728462516073,0.53482175,62181.0,62180.0,0.0804]
[1728462516512,0.46304965,62181.0,62180.0,0.0804]
[1728462516737,0.55872649,62181.0,62180.0,0.0804]
[1728462517258,0.53480689,62181.0,62180.0,0.0804]
[1728462519089,0.55872649,62181.0,62180.0,0.0804]
[1728462519306,0.42101913,62181.0,62180.0,0.0804]
[1728462519524,0.42102524,62181.0,62180.0,0.0804]
[1728462522165,0.41602524,62181.0,62180.0,0.0804]
[1728462523113,0.53740711,62181.0,62180.0,0.0804]
[1728462527677,0.44336616,62181.0,62180.0,0.0804]
[1728462530364,0.56306136,62181.0,62180.0,0.0804]
[1728462539253,0.56308602,62181.0,62180.0,0.0804]
[1728462540621,0.56308602,62181.0,62180.0,0.081221]
[1728462541374,0.28629071,62181.0,62180.0,0.176321]
[1728462541580,0.21446896,62181.0,62180.0,0.176321]
[1728462541800,0.16657085,62181.0,62180.0,0.176321]
[1728462542527,0.01074985,62181.0,62180.0,0.176321]
[1728462542642,0.01074985,62181.0,62180.0,0.337144]
[1728462543094,0.01074985,62181.0,62180.0,0.176321]
[1728462544282,0.01074985,62181.0,62180.0,0.337144]
[1728462545437,0.001642,62181.0,62180.0,0.337144]
[1728462546120,0.001642,62181.0,62180.0,0.336144]
[1728462546341,0.001642,62181.0,62180.0,0.337144]
[1728462546565,0.002642,62181.0,62180.0,0.337144]
[1728462546784,0.001642,62181.0,62180.0,0.336144]
[1728462547022,0.002642,62181.0,62180.0,0.338144]
[1728462547250,0.002642,62181.0,62180.0,0.337144]
[1728462547489,0.002642,62181.0,62180.0,0.341144]
[1728462547490,0.003642,62181.0,62180.0,0.341144]
[1728462552439,0.003642,62181.0,62180.0,0.46252587]
[1728462552949,0.003642,62181.0,62180.0,0.341144]
[1728462557216,0.003642,62181.0,62180.0,0.46252587]
[1728462563309,0.003642,62181.0,62180.0,0.56752587]
[1728462563722,0.001642,62181.0,62180.0,0.56152587]
[1728462564132,0.001642,62181.0,62180.0,0.56752587]
[1728462564133,0.003642,62181.0,62180.0,0.56752587]
[1728462564969,0.002642,62181.0,62180.0,0.56552587]
[1728462565168,0.002642,62181.0,62180.0,0.72093931]
[1728462565610,0.001642,62181.0,62180.0,0.71693931]
[1728462565829,0.001642,62181.0,62180.0,0.71793931]
[1728462566063,0.001642,62181.0,62180.0,0.71993931]
[1728462566518,0.001642,62181.0,62180.0,0.71693931]
[1728462566734,0.008642,62181.0,62180.0,0.71793931]
[1728462566946,0.017642,62181.0,62180.0,0.71893931]
[1728462567158,0.010642,62181.0,62180.0,0.71793931]
[1728462567577,0.017642,62181.0,62180.0,0.71893931]
[1728462575326,0.017642,62181.0,62180.0,0.59755744]
[1728462576283,0.017642,62181.0,62180.0,0.59255744]
[1728462576515,0.017642,62181.0,62180.0,0.437144]
[1728462594256,0.017642,62181.0,62180.0,0.342044]
[1728462596718,0.017642,62181.0,62180.0,0.002821]
[1728462596946,0.25248149,62181.0,62180.0,0.002821]
[1728462597176,0.25986457,62181.0,62180.0,0.002821]
[1728462597642,0.18792108,62181.0,62180.0,0.002821]
[1728462597873,0.17892108,62181.0,62180.0,0.001821]
[1728462598069,0.24493556,62181.0,62180.0,0.000821]
[1728462598286,0.17392108,62181.0,62180.0,0.000821]
[1728462598602,0.17292108,62181.0,62180.0,0.000821]
[1728462598839,0.17392108,62181.0,62180.0,0.010821]
[1728462599057,0.27152108,62181.0,62180.0,0.010821]
[1728462599277,0.34250712,62181.0,62180.0,0.010821]
[1728462599498,0.34250712,62181.0,62180.0,0.017821]
[1728462599728,0.34350712,62181.0,62180.0,0.017821]
[1728462600168,0.34250712,62181.0,62180.0,0.007821]
[1728462600613,0.34350712,62181.0,62180.0,0.007821]
[1728462601069,0.34350712,62181.0,62180.0,0.000821]
[1728462601070,0.48265827,62181.0,62180.0,0.000821]
[1728462601301,0.41067223,62181.0,62180.0,0.003821]
[1728462601536,0.50767886,62181.0,62180.0,0.003821]
[1728462601776,0.6620923,62181.0,62180.0,0.000821]
[1728462601996,0.56508567,62181.0,62180.0,0.000821]
[1728462602227,0.64158567,62181.0,62180.0,0.001821]
[1728462602895,0.64158567,62181.0,62180.0,0.000821]
[1728462603116,0.64258567,62181.0,62180.0,0.000821]
[1728462603574,0.64258567,62181.0,62180.0,0.001821]
[1728462603833,0.64258567,62181.0,62180.0,0.000821]
[1728462604032,0.50243452,62181.0,62180.0,0.000821]
[1728462604265,0.50343452,62181.0,62180.0,0.000821]
[1728462604515,0.62327212,62181.0,62180.0,0.000821]
[1728462604748,0.50343452,62181.0,62180.0,0.000821]
[1728462604973,0.64480185,62181.0,62180.0,0.000821]
[1728462605438,0.76460278,62181.0,62180.0,0.000821]
[1728462606397,0.64480185,62181.0,62180.0,0.000821]
[1728462607364,0.74060994,62181.0,62180.0,0.000821]
[1728462608527,0.64480185,62181.0,62180.0,0.000821]
[1728462609028,0.74522285,62181.0,62180.0,0.000821]
[1728462609253,1.09950185,62181.0,62180.0,0.000821]
[1728462609488,0.64480185,62181.0,62180.0,0.000821]
[1728462609705,0.50179252,62181.0,62180.0,0.000821]
[1728462610175,0.72312261,62181.0,62180.0,0.000821]
[1728462610412,0.62643452,62181.0,62180.0,0.000821]
[1728462612403,0.72212503,62181.0,62180.0,0.000821]
[1728462612895,1.15337461,62181.0,62180.0,0.000821]
[1728462613119,1.18709996,62181.0,62180.0,0.000821]
[1728462614247,1.18909996,62181.0,62180.0,0.000821]
[1728462614474,1.18709996,62181.0,62180.0,0.000821]
[1728462614699,0.74781639,62181.0,62180.0,0.000821]
[1728462614934,0.90966939,62181.0,62180.0,0.000821]
[1728462616805,0.91666939,62181.0,62180.0,0.000821]
[1728462617067,1.03620402,62181.0,62180.0,0.000821]
[1728462617316,0.74596915,62181.0,62180.0,0.000821]
[1728462617549,0.8825897,62181.0,62180.0,0.000821]
[1728462618466,0.78697129,62181.0,62180.0,0.000821]
[1728462618696,0.8825816,62181.0,62180.0,0.000821]
[1728462619413,0.78697129,62181.0,62180.0,0.000821]
[1728462619856,0.78497129,62181.0,62180.0,0.000821]
[1728462620086,0.79797129,62181.0,62180.0,0.000821]
[1728462620305,0.79397129,62181.0,62180.0,0.000821]
[1728462620527,1.26282018,62181.0,62180.0,0.000821]
[1728462620747,0.92148418,62181.0,62180.0,0.000821]
[1728462621395,1.02501918,62181.0,62180.0,0.000821]
[1728462622532,0.90550629,62181.0,62180.0,0.000821]
[1728462623317,1.02501918,62181.0,62180.0,0.000821]
[1728462623548,0.90550629,62181.0,62180.0,0.000821]
[1728462624232,1.02501918,62181.0,62180.0,0.000821]
[1728462624446,0.90550629,62181.0,62180.0,0.000821]
[1728462625331,1.02501918,62181.0,62180.0,0.000821]
[1728462626717,0.98586428,62181.0,62180.0,0.000821]
[1728462627608,0.86835139,62181.0,62180.0,0.000821]
[1728462628035,0.87335139,62181.0,62180.0,0.000821]
[1728462629858,0.76981639,62181.0,62180.0,0.000821]
[1728462630299,2.14162239,62181.0,62180.0,0.000821]
[1728462630536,2.39995383,62181.0,62180.0,0.000821]
[1728462632812,2.27857196,62181.0,62180.0,0.000821]
[1728462633035,2.39995383,62181.0,62180.0,0.000821]
[1728462634140,2.97279683,62181.0,62180.0,0.000821]
[1728462634620,2.96379683,62181.0,62180.0,0.000821]
[1728462635045,2.96979683,62181.0,62180.0,0.000821]
[1728462635473,2.98379683,62181.0,62180.0,0.000821]
[1728462635921,2.96979683,62181.0,62180.0,0.000821]
[1728462636132,2.98379683,62181.0,62180.0,0.000821]
[1728462636343,3.12719046,62181.0,62180.0,0.000821]
[1728462636820,1.64546546,62181.0,62180.0,0.000821]
[1728462637026,1.50207183,62181.0,62180.0,0.000821]
[1728462637251,1.65946546,62181.0,62180.0,0.000821]
[1728462637495,1.53808359,62181.0,62180.0,0.000821]
[1728462637750,1.66163263,62181.0,62180.0,0.000821]
[1728462638273,1.51807183,62181.0,62180.0,0.000821]
[1728462638507,1.51607183,62181.0,62180.0,0.000821]
[1728462638701,1.43957183,62181.0,62180.0,0.000821]
[1728462639451,1.44157183,62181.0,62180.0,0.000821]
[1728462639707,1.28615839,62181.0,62180.0,0.000821]
[1728462640585,1.28415839,62181.0,62180.0,0.000821]
[1728462641993,1.28615839,62181.0,62180.0,0.000821]
[1728462643451,1.28415839,62181.0,62180.0,0.000821]
[1728462643686,1.39906523,62181.0,62180.0,0.000821]
[1728462644421,1.56057113,62181.0,62180.0,0.000821]
[1728462645460,1.39906523,62181.0,62180.0,0.000821]
[1728462646464,1.16277652,62181.0,62180.0,0.000821]
[1728462646706,0.59971639,62181.0,62180.0,0.000821]
[1728462646959,0.76665771,62181.0,62180.0,0.000821]
[1728462647424,3.15163871,62181.0,62180.0,0.000821]
[1728462647634,2.98969739,62181.0,62180.0,0.000821]
[1728462648057,2.99169739,62181.0,62180.0,0.000821]
[1728462648277,2.23361839,62181.0,62180.0,0.000821]
[1728462648491,2.23361839,62181.0,62167.0,0.0164412]
[1728462648492,0.160864,62164.0,62163.0,0.23617958]
[1728462648908,0.321724,62165.0,62159.0,0.161697]
[1728462648909,0.160867,62163.0,62159.0,0.161697]
[1728462649589,0.17091401,62163.0,62159.0,0.000821]
[1728462649845,0.16311801,62163.0,62159.0,0.000821]
[1728462650289,0.16311801,62163.0,62159.0,0.161696]
[1728462651190,0.16311801,62163.0,62159.0,0.000821]
[1728462651420,0.16311801,62163.0,62162.0,0.180621]
[1728462653425,0.01004701,62163.0,62162.0,0.180621]
[1728462653903,0.17091401,62163.0,62162.0,0.180621]
[1728462655410,0.21891449,62163.0,62162.0,0.180621]
[1728462657374,0.34029636,62163.0,62162.0,0.180621]
[1728462657866,0.29229588,62163.0,62162.0,0.180621]
[1728462658517,0.3642966,62163.0,62162.0,0.180621]
[1728462659663,0.3642966,62163.0,62162.0,0.000821]
[1728462659664,0.44684186,62163.0,62162.0,0.000821]
[1728462660344,0.29229588,62163.0,62162.0,0.000821]
[1728462662558,0.44770932,62163.0,62162.0,0.000821]
[1728462665109,0.45070932,62163.0,62162.0,0.000821]
[1728462665936,0.45370932,62163.0,62162.0,0.000821]
[1728462666528,0.53080932,62163.0,62162.0,0.000821]
[1728462666723,0.28228487,62149.0,62146.0,0.000821]
[1728462666924,0.64002168,62149.0,62146.0,0.000821]
[1728462667140,0.64587037,62149.0,62146.0,0.000821]
[1728462668097,0.64787037,62149.0,62146.0,0.000821]
[1728462668290,0.65613414,62149.0,62146.0,0.000821]
[1728462668518,0.77751601,62149.0,62146.0,0.000821]
[1728462669287,0.54957037,62149.0,62146.0,0.000821]
[1728462669693,0.55157037,62149.0,62146.0,0.000821]
[1728462669923,0.3301885,62149.0,62146.0,0.000821]
[1728462670129,0.45157037,62149.0,62146.0,0.000821]
[1728462670958,0.3301885,62149.0,62146.0,0.000821]
[1728462671174,0.45157037,62149.0,62146.0,0.000821]
[1728462673729,0.49948075,62149.0,62146.0,0.000821]
[1728462674177,0.45157037,62149.0,62146.0,0.000821]
[1728462674820,0.59462328,62149.0,62146.0,0.000821]
[1728462675227,0.45157037,62149.0,62146.0,0.000821]
[1728462677418,0.29615693,62149.0,62146.0,0.000821]
[1728462677641,0.01387206,62149.0,62148.0,0.081121]
[1728462677861,0.17477506,62149.0,62148.0,0.081121]
[1728462678328,0.17277506,62149.0,62148.0,0.081121]
[1728462678557,0.17077506,62149.0,62148.0,0.081121]
[1728462679839,0.00987206,62149.0,62148.0,0.081121]
[1728462680047,0.160901,62150.0,62148.0,0.174221]
[1728462680252,0.00977834,62149.0,62148.0,0.174221]
[1728462680707,0.12138187,62155.0,62152.0,0.160894]
[1728462680960,0.160886,62156.0,62152.0,0.160894]
[1728462680961,0.2397794,62154.0,62153.0,0.0809]
[1728462681159,0.321751,62160.0,62153.0,0.0809]
[1728462681160,0.160876,62160.0,62154.0,0.0991]
[1728462681360,0.04785947,62162.0,62154.0,0.0991]
[1728462681361,0.4006574,62159.0,62157.0,0.0809]
[1728462681576,0.16088,62158.0,62157.0,0.0809]
[1728462682972,0.28226087,62159.0,62157.0,0.0809]
[1728462683184,0.160874,62161.0,62157.0,0.0809]
[1728462683405,0.160874,62161.0,62157.0,0.241781]
[1728462683634,0.12138187,62162.0,62157.0,0.0809]
[1728462683919,0.12138187,62162.0,62158.0,0.160879]
[1728462684129,0.12138187,62162.0,62157.0,0.08279793]
[1728462684445,0.002,62161.0,62160.0,0.0951]
[1728462684660,0.12138187,62162.0,62160.0,0.0951]
[1728462684888,0.160872,62161.0,62160.0,0.0951]
[1728462685338,0.12438187,62162.0,62157.0,0.0809]
[1728462685593,0.12138187,62159.0,62157.0,0.0809]
[1728462687925,0.28225287,62162.0,62158.0,0.160878]
[1728462688132,0.32338,62163.0,62160.0,0.160874]
[1728462688133,0.001642,62163.0,62160.0,0.160874]
[1728462688366,0.001642,62163.0,62161.0,0.160871]
[1728462688587,0.001642,62163.0,62158.0,0.32365763]
[1728462688849,0.001642,62163.0,62162.0,0.160869]
[1728462689068,0.001642,62163.0,62162.0,0.24536604]
[1728462689586,0.005642,62163.0,62162.0,0.24536604]
[1728462690085,0.006642,62163.0,62162.0,0.24536604]
[1728462690299,0.005642,62163.0,62162.0,0.24536604]
[1728462690520,0.001642,62163.0,62162.0,0.33846604]
[1728462690760,0.002642,62163.0,62162.0,0.336569]
[1728462691268,0.003642,62163.0,62162.0,0.336569]
[1728462691532,0.002642,62163.0,62162.0,0.336569]
[1728462691771,0.003642,62163.0,62162.0,0.336569]
[1728462692230,0.002642,62163.0,62162.0,0.336569]
[1728462692448,0.003642,62163.0,62162.0,0.336569]
[1728462695477,0.003642,62163.0,62162.0,0.49998244]
[1728462695693,0.003642,62163.0,62162.0,0.59998244]
[1728462696063,0.003642,62163.0,62162.0,0.62298244]
[1728462696252,0.001642,62181.0,62162.0,0.62298244]
[1728462696253,0.001642,62181.0,62180.0,0.46330487]
[1728462696506,0.001642,62181.0,62180.0,0.62371831]
[1728462696999,0.001642,62181.0,62180.0,0.50233644]
[1728462697424,0.001642,62181.0,62180.0,0.49733644]
[1728462697842,0.002642,62181.0,62180.0,0.353923]
[1728462698259,0.002642,62181.0,62180.0,0.256023]
[1728462698471,0.002642,62181.0,62180.0,0.012]
[1728462698671,0.164462,62181.0,62180.0,0.023]
[1728462698872,0.17461013,62181.0,62180.0,0.023]
[1728462699074,0.01379013,62181.0,62180.0,0.023]
[1728462699283,0.17461013,62181.0,62180.0,0.023]
[1728462699500,0.17361013,62181.0,62180.0,0.011]
[1728462699916,0.17361013,62181.0,62180.0,0.017]
[1728462700115,0.01279013,62181.0,62180.0,0.011]
[1728462700320,0.17261013,62181.0,62176.0,0.160831]
[1728462700547,0.17261013,62181.0,62175.0,0.40127]
[1728462700548,0.01179013,62181.0,62175.0,0.40127]
[1728462700756,0.01279013,62181.0,62180.0,0.007]
[1728462700973,0.01279013,62181.0,62180.0,0.009]
[1728462700974,0.17361013,62181.0,62180.0,0.009]
[1728462701405,0.17361013,62181.0,62180.0,0.007]
[1728462701616,0.17361013,62181.0,62175.0,0.240434]
[1728462701617,0.01179013,62181.0,62178.0,0.160826]
[1728462701792,0.17261213,62181.0,62177.0,0.16083]
[1728462704003,0.17261213,62181.0,62178.0,0.003]
[1728462704233,0.01179013,62181.0,62178.0,0.163828]
[1728462704438,0.01179013,62181.0,62178.0,0.160828]
[1728462705499,0.01179013,62181.0,62180.0,0.160823]
[1728462705716,0.01179013,62181.0,62180.0,0.24891628]
[1728462705937,0.01179013,62181.0,62180.0,0.247023]
[1728462705938,0.001642,62181.0,62180.0,0.247023]
[1728462706631,0.002642,62181.0,62180.0,0.253023]
[1728462707087,0.001642,62181.0,62180.0,0.242023]
[1728462707316,0.002642,62181.0,62180.0,0.253023]
[1728462707776,0.001642,62181.0,62180.0,0.242023]
[1728462708033,0.002642,62181.0,62180.0,0.249023]
[1728462708762,0.001642,62181.0,62180.0,0.242023]
[1728462709012,0.002642,62181.0,62180.0,0.249023]
[1728462709462,0.001642,62181.0,62180.0,0.242023]
[1728462709928,0.002642,62181.0,62180.0,0.249023]
[1728462710162,0.002642,62181.0,62180.0,0.256023]
[1728462710163,0.003642,62181.0,62180.0,0.256023]
[1728462710630,0.003642,62181.0,62180.0,0.25791689]
[1728462711189,0.003642,62181.0,62180.0,0.70027886]
[1728462711444,0.003642,62181.0,62180.0,0.70227886]
[1728462711922,0.003642,62181.0,62180.0,0.80227886]
[1728462712181,0.002642,62181.0,62180.0,0.79527886]
[1728462712418,0.003642,62181.0,62180.0,0.80927886]
[1728462712685,0.002642,62181.0,62180.0,0.81827886]
[1728462712947,0.012642,62181.0,62180.0,0.82334724]
[1728462713441,0.002642,62181.0,62180.0,0.82234724]
[1728462713672,0.009642,62181.0,62180.0,0.81634724]
[1728462713920,0.001642,62181.0,62180.0,0.81534724]
[1728462714174,0.002642,62181.0,62180.0,0.82834724]
[1728462714391,0.001642,62181.0,62180.0,0.81534724]
[1728462714887,0.002642,62181.0,62180.0,0.81634724]
[1728462715915,0.009642,62181.0,62180.0,0.81734724]
[1728462718473,0.009642,62181.0,62180.0,0.82443524]
[1728462718971,0.002,62184.0,62180.0,0.82443524]
[1728462718972,0.002,62184.0,62183.0,0.361415]
[1728462719191,0.002,62184.0,62183.0,0.61682844]
[1728462720142,0.002,62184.0,62183.0,0.7256404]
[1728462720371,0.002,62184.0,62183.0,0.64905844]
[1728462720591,0.004,62190.0,62189.0,0.1908]
[1728462720809,0.004,62190.0,62189.0,0.80624546]
[1728462721041,0.004,62190.0,62189.0,0.80435586]
[1728462721517,0.004,62190.0,62189.0,0.9048541]
[1728462721748,0.004,62190.0,62189.0,0.92877012]
[1728462721972,0.007,62190.0,62189.0,0.83310603]
[1728462722460,0.007,62190.0,62189.0,0.92977012]
[1728462722958,0.007,62190.0,62189.0,0.93392542]
[1728462723181,0.004,62190.0,62189.0,0.90517525]
[1728462723374,0.004,62190.0,62189.0,0.93609128]
[1728462723592,0.004,62190.0,62189.0,0.81551116]
[1728462723811,0.004,62190.0,62189.0,0.80851116]
[1728462724034,0.004,62190.0,62189.0,0.84174116]
[1728462724259,1e-06,62190.0,62189.0,0.87049133]
[1728462724479,0.00172128,62210.0,62199.0,0.167774]
[1728462724722,0.00172128,62210.0,62199.0,0.80202986]
[1728462726294,0.00172128,62210.0,62199.0,0.80002986]
[1728462726570,0.00172128,62210.0,62199.0,0.80302986]
[1728462726795,0.00172128,62210.0,62199.0,0.80202986]
[1728462727490,0.005642,62200.0,62199.0,0.80202986]
[1728462728379,0.005642,62200.0,62199.0,0.84984823]
[1728462728797,0.005642,62200.0,62199.0,0.80202986]
[1728462729016,0.005642,62200.0,62199.0,0.84984823]
[1728462729272,0.005642,62200.0,62199.0,0.84784823]
[1728462729490,0.005642,62200.0,62199.0,0.80002986]
[1728462729707,0.005642,62200.0,62199.0,0.80202986]
[1728462730176,0.005642,62200.0,62199.0,0.80618348]
[1728462731341,0.005642,62200.0,62199.0,0.8539961]
[1728462733314,0.005642,62200.0,62199.0,0.80618348]
[1728462734444,0.005642,62200.0,62199.0,0.88402264]
[1728462735290,0.005642,62200.0,62199.0,0.78972264]
[1728462735501,0.005642,62200.0,62199.0,0.71800371]
[1728462735921,0.005642,62200.0,62199.0,0.53296129]
[1728462739358,0.005642,62200.0,62199.0,0.60468022]
[1728462740283,0.005642,62200.0,62199.0,0.69538022]
[1728462740497,0.005642,62200.0,62199.0,0.62566129]
[1728462740677,0.001642,62200.0,62199.0,0.62566129]
[1728462740912,0.006642,62200.0,62199.0,0.62566129]
[1728462741353,0.001642,62200.0,62199.0,0.62566129]
[1728462742679,0.005642,62200.0,62199.0,0.62666129]
[1728462742896,0.012642,62200.0,62199.0,0.62766129]
[1728462743353,0.012642,62200.0,62199.0,0.7474549]
[1728462743564,0.012642,62200.0,62199.0,0.76249008]